Cogmind - Beta 15 @@@ ROGUE MODE // 2025.06.05 @ 16:28:30 Player: HSFM Result: Destroyed by 06-F4Y(j) with Overtuned Pulse Rifle Performance ------------- Evolutions (0) 0 Regions Visited (3) 600 Robots Destroyed (23) 115 Value Destroyed (644) 644 Prototype IDs (1) 20 Alien Tech Used (0) 0 Bonus (797) 797 TOTAL SCORE: 2176 Bonus ------- Registered with UFD 300 Met Optimus in HQ 500 Friendly Fire -3 Cogmind --------- Core Integrity 0/250 Matter 300/300 Energy 136/140 System Corruption 1% Temperature Cool (15) Movement Walking (100) Location -7/Scraptown Parts ------- > --- POWER (1) -------- Light Deuterium Engine > --- PROPULSION (2) --- Overtuned Titanium Leg Overtuned Titanium Leg > --- UTILITY (2) ------ Small Storage Unit > --- WEAPON (2) ------- Improved Grenade Launcher > --- INVENTORY (8) ---- Overtuned Titanium Leg Enhanced Optical Array Weapon Cycler Advanced ECM Suite Makeshift Hacking Suite Datajack PL-3XN's Ring of Power PL-3XN's Ring of Power Peak State ------------ > --- POWER ------------ Fission Core > --- PROPULSION ------- Titanium Leg Improved Carbon-fiber Leg > --- UTILITY ---------- Small Storage Unit Core Analyzer > --- WEAPON ----------- Junk Cannon > --- INVENTORY -------- Enhanced Optical Array Weapon Cycler Advanced ECM Suite Makeshift Hacking Suite Improved Grenade Launcher Datajack Heavy Hammer [Rating: 31] Favorites ----------- Power Fission Core Engine Subdweller Power Source Power Core Fission Core Propulsion Aluminum Leg Leg Aluminum Leg Flight Unit VTOL Module Utility Small Storage Unit Device Structural Scanner Storage Small Storage Unit Processor Core Analyzer Weapon Improved Grenade Launcher Energy Gun Medium Laser Energy Cannon Particle Cannon Ballistic Gun Assault Rifle Ballistic Cannon Heavy Flak Cannon Launcher Improved Grenade Launcher Special Weapon Junk Cannon Impact Weapon Maul Build | -11 -10 -10 -7 ------- Run | Yrd Mat Sub Scr Slots Evolved . | . . . . Power . | . . . . Propulsion . | . . . . Utility . | . . . . Weapon . | . . . . Parts Attached 39 | 7 3 2 27 Power 4 | 1 . 1 2 Engine 3 | 1 . 1 1 Core 1 | . . . 1 Reactor . | . . . . Propulsion 10 | 2 . . 8 Treads . | . . . . Leg 9 | 2 . . 7 Wheel . | . . . . Hover . | . . . . Flight 1 | . . . 1 Utility 6 | 2 1 . 3 Device 4 | 1 1 . 2 Storage 1 | 1 . . . Processor 1 | . . . 1 Hackware . | . . . . Protection . | . . . . Artifact . | . . . . Weapon 19 | 2 2 1 14 Energy Gun 4 | 1 . . 3 Energy Cannon 1 | . . . 1 Ballistic Gun 2 | 1 . . 1 Ballistic Cannon 3 | . . . 3 Launcher 4 | . 2 . 2 Special Weapon 3 | . . 1 2 Impact Weapon 2 | . . . 2 Slashing Weapon . | . . . . Piercing Weapon . | . . . . Special Melee Weapon . | . . . . Unidentified Prototypes 1 | . . . 1 Parts Lost 8 | . 1 1 6 Power 2 | . . 1 1 Propulsion 3 | . . . 3 Utility 2 | . 1 . 1 Weapon 1 | . . . 1 Highest Loss Streak 6 | . 1 1 6 To Critical Strikes . | . . . . Average Backups 7 | . 3 7 7 Power . | . . . . Propulsion . | . . . . Utility 1 | . . . 2 Weapon 4 | . 2 5 4 Tool/Special . | . . . . Unused Backups 13 | . . . 13 Power . | . . . . Propulsion 1 | . . . 1 Utility 4 | . . . 4 Weapon 6 | . . . 6 Tool/Special 2 | . . . 2 Average Slot Usage (%) 92 | . 98 95 91 Engine 4 | . 14 9 2 Core 8 | . . . 11 Leg 27 | . 28 28 27 Device 4 | . 12 14 2 Storage 14 | . 14 14 14 Processor 8 | . . . 11 Energy Gun 1 | . 10 . . Launcher 19 | . 5 27 18 Special Weapon 1 | . . . 2 Peak Build Rating 31 | 7 7 9 31 Average Rating 16 | 5 6 8 19 On Entrance 5 | . 7 7 9 Naked Turns . | . . . . Heaviest Build 29 | 15 17 17 29 Greatest Support 38 | 20 20 20 38 Greatest Overweight (x) 5 | . . . 5 Average Overweight (x) . | . . . . Largest Inventory Capacity 8 | 8 8 8 8 Average Capacity 7 | 6 8 8 7 Most Carried 8 | 1 4 8 8 Average Carried 7 | . 3 7 7 Final Capacity 8 | 8 8 8 8 Final Carried 8 | 1 4 8 8 Class Distribution -------------------- 100% | Mutant Dominant Class ---------------- Mutant | -10/Materials Mutant | -10/Subcaves Mutant | -7/Scraptown Resources | -11 -10 -10 -7 ----------- Run | Yrd Mat Sub Scr Matter Collected 1143 | 192 102 67 782 Remotely . | . . . . Salvage Created 845 | 32 139 67 607 Parts 40 | 6 15 7 12 Haulers Intercepted . | . . . . Recyclers Shooed 1 | 1 . . . Parts Field Recycled . | . . . . Retrieved Matter . | . . . . Parts Self-Destructed . | . . . . Prevented . | . . . . Kills | -11 -10 -10 -7 ------- Run | Yrd Mat Sub Scr Combat Hostiles Destroyed 19 | . 5 4 10 Guns 4 | . 4 . . Cannons 1 | . . . 1 AOE 10 | . 1 4 5 Classes Destroyed 9 | 1 3 1 4 Builder 1 | . 1 . . Tunneler 3 | 2 1 . . Swarmer 3 | . 3 . . Grunt 2 | . 2 . . Subdweller 4 | . . 4 . Bolteater 3 | . . . 3 Federalist 1 | . . . 1 Explorer 1 | . . . 1 Scrapper 5 | . . . 5 Best Kill Streak 4 | 2 3 2 4 Combat Bots Only 4 | . 3 2 4 Max Kills in Single Turn 1 | 1 1 1 1 Gunslinging . | . . . . Exploded 1 | . 1 1 1 Melee . | . . . . Uniques/NPCs Destroyed . | . . . . Combat | -11 -10 -10 -7 -------- Run | Yrd Mat Sub Scr Hostile Shots Fired 152 | . 40 7 105 Missed 50 | . 11 4 35 Hits 102 | . 29 3 70 Melee 1 | . . . 1 Projectile 101 | . 29 3 69 Critical Strikes 1 | . . . 1 Damage Taken 1429 | . 327 88 1014 Core 261 | . 74 11 176 Absorbed by Shields . | . . . . Core Remaining (%) 100 | 100 . . . Volleys Fired 57 | 3 18 13 23 Largest 2 | 2 2 2 1 Hottest 100 | 70 70 100 36 Shots Fired 88 | 6 35 24 23 Gun 36 | 6 30 . . Cannon . | . . . . Launcher 39 | . 5 22 12 Special 13 | . . 2 11 Kinetic 19 | 3 16 . . Thermal 19 | 3 14 2 . Explosive 39 | . 5 22 12 Electromagnetic . | . . . . Impact 11 | . . . 11 Robot Hit Streak 8 | 2 5 6 8 Robot Miss Streak 2 | 2 2 1 2 Penetration Max . | . . . . Secondary Targets 1 | . 1 . . Max Gunslinging Chain 1 | . 1 . . Shots Hit Robots 36 | 3 16 4 13 Core Hits 37 | 2 9 7 19 Critical Kills . | . . . . Critical Parts Destroyed 4 | . . . 4 Critical Strikes 4 | . . . 4 Smash 4 | . . . 4 Melee Attacks . | . . . . Impact . | . . . . Slashing . | . . . . Piercing . | . . . . Sneak Attacks . | . . . . Combat Hostiles . | . . . . Follow-up Attacks . | . . . . Damage Inflicted 2470 | 38 390 667 1375 Guns 215 | 38 177 . . Cannons . | . . . . Explosions 1510 | . 213 667 630 Melee . | . . . . Ramming . | . . . . Kinetic 90 | 13 77 . . Thermal 125 | 25 100 . . Explosive 1510 | . 213 667 630 Electromagnetic . | . . . . Impact 745 | . . . 745 Slashing . | . . . . Piercing . | . . . . Highest Corruption 1 | . . . 1 Average Corruption 1 | . . . 1 Corruption Purged . | . . . . Corruption Blocked . | . . . . Effects 1 | . . . 1 Energy Discharges 1 | . . . 1 Overload Shots . | . . . . Overflow Damage 506 | . 4 . 502 Projectiles 481 | . . . 481 Explosions 25 | . 4 . 21 Melee . | . . . . Knockbacks 5 | . . . 5 Impact 5 | . . . 5 Kinetic . | . . . . Secondary . | . . . . Self-Inflicted Damage 78 | . 23 26 29 Shots 4 | . 1 2 1 Rammed . | . . . . Targets Rammed . | . . . . Kicked . | . . . . Crushed . | . . . . Highest Temperature 132 | 9 132 . 27 Average Temperature 34 | 6 47 . 11 Received Heat Transfer 544 | . 99 . 445 Siege Activations . | . . . . Martial Activations . | . . . . Shielding Activations . | . . . . Robots Disrupted . | . . . . Combat Hostiles . | . . . . Robots Corrupted 4 | . . . 4 Combat Hostiles 4 | . . . 4 Parts Fried 4 | . . . 4 Impact Corruptions 12 | . . . 12 Robots Melted . | . . . . Combat Hostiles . | . . . . Parts Melted 2 | 1 . . 1 Heat Transferred 370 | 74 296 . . Parts Sabotaged . | . . . . Parts Stolen . | . . . . Parts Stripped . | . . . . Power Chain Reactions . | . . . . Alert | -11 -10 -10 -7 ------- Run | Yrd Mat Sub Scr Maximum Alert Level . | . . . . Low Security (%) 100 | 100 100 . . Level 1 . | . . . . Level 2 . | . . . . Level 3 . | . . . . Level 4 . | . . . . Level 5 . | . . . . High Security . | . . . . Max Security . | . . . . Peak Influence 119 | 5 119 . . Initial . | . . . . Average 29 | . 39 . . Influence Increases 203 | 10 193 . . Destroy 0b10 Robot/C 100 | . 100 . . Destroy 0b10 Robot/NC 20 | 10 10 . . Destroy Leader 20 | . 20 . . Successful Hack 4 | . 4 . . Destroy Structure 29 | . 29 . . Lose Combat Pursuer 30 | . 30 . . Influence Decreases 203 | 10 74 119 . Entered New Map 58 | . . 58 . Time Decay 135 | 10 74 51 . Lost Part 10 | . . 10 . Squads Dispatched . | . . . . Investigation . | . . . . Extermination . | . . . . Reinforcement . | . . . . Assault . | . . . . Garrison . | . . . . Intercept . | . . . . Searches Triggered . | . . . . Construction Impeded . | . . . . Haulers Reinforced . | . . . . Active Scanning Responses . | . . . . Cargo Convoy Interrupts . | . . . . Stealth | -11 -10 -10 -7 --------- Run | Yrd Mat Sub Scr Distress Signals . | . . . . Communications Jammed . | . . . . Distress Signals . | . . . . Times Spotted 39 | . 9 3 27 Peak Tracking Total 7 | . 5 2 7 Tactical Retreats 3 | . 2 . 1 Traps | -11 -10 -10 -7 ------- Run | Yrd Mat Sub Scr Traps Triggered . | . . . . Indirectly . | . . . . Trap Hack Attempts . | . . . . Triggered . | . . . . Disarmed . | . . . . Reprogrammed . | . . . . Reused . | . . . . Traps Extracted . | . . . . Installed . | . . . . Triggered . | . . . . Machines | -11 -10 -10 -7 ---------- Run | Yrd Mat Sub Scr Machines Disabled 5 | . 1 . 4 Max in Single Turn 2 | . 1 . 2 Machines Repaired . | . . . . Machines Dismantled . | . . . . Machines Sabotaged . | . . . . Overloaded Fab Kills . | . . . . Hacking | -11 -10 -10 -7 --------- Run | Yrd Mat Sub Scr Machines Accessed 4 | . 1 . 3 Terminals 1 | . 1 . . Fabricators . | . . . . Repair Stations . | . . . . Recycling Units . | . . . . Scanalyzers . | . . . . Garrison Access . | . . . . Total Hacks 27 | . 2 . 25 Successful 27 | . 2 . 25 Failed . | . . . . Catastrophic . | . . . . Database Lockouts . | . . . . Manual . | . . . . Terminals 2 | . 2 . . Fabricators . | . . . . Repair Stations . | . . . . Recycling Units . | . . . . Scanalyzers . | . . . . Garrison Access . | . . . . Terminal Hacks 27 | . 2 . 25 Record 26 | . 1 . 25 Dispatch Records 1 | . 1 . . Fabricator Hacks . | . . . . Repair Station Hacks . | . . . . Recycling Unit Hacks . | . . . . Scanalyzer . | . . . . Garrison Access Hacks . | . . . . Unauthorized Hacks . | . . . . Terminals . | . . . . Fabricators . | . . . . Repair Stations . | . . . . Recycling Units . | . . . . Scanalyzers . | . . . . Garrison Access . | . . . . Data Cores Recovered . | . . . . Used . | . . . . Hacking Detections 1 | . 1 . . Full Trace Events . | . . . . Feedback Events . | . . . . Feedback Blocked . | . . . . Robot Schematics Acquired . | . . . . Robots Built . | . . . . Authchips . | . . . . Time . | . . . . Total Robot Build Rating . | . . . . Part Schematics Acquired . | . . . . Parts Built . | . . . . Authchips . | . . . . Time . | . . . . Total Part Build Rating . | . . . . Parts Repaired . | . . . . Time . | . . . . Parts Recycled . | . . . . Recycled Matter . | . . . . Retrieved Matter . | . . . . Retrieved Components . | . . . . Parts Scanalyzed . | . . . . Part Schematics Acquired . | . . . . Parts Damaged . | . . . . Bothacking | -11 -10 -10 -7 ------------ Run | Yrd Mat Sub Scr Used RIF Installer . | . . . . Robots Hacked . | . . . . Non-combat . | . . . . Combat . | . . . . Robot Hacks Applied . | . . . . Relay Couplers Released . | . . . . Fabnet Peak Effective % . | . . . . Robots Rewired . | . . . . Allies Hacked . | . . . . Hacks Repelled . | . . . . Allies | -11 -10 -10 -7 -------- Run | Yrd Mat Sub Scr Total Allies . | . . . . Largest Group . | . . . . Highest-Rated Group . | . . . . Highest-Rated Ally . | . . . . Total Orders . | . . . . Ally Attacks . | . . . . Total Damage . | . . . . Kills . | . . . . Allies Corrupted . | . . . . Allies Melted 3 | . . . 3 Intel | -11 -10 -10 -7 ------- Run | Yrd Mat Sub Scr Active Infowar (turns) 1556 | 12 257 810 477 Optics 1 | . . . 1 Structural 1411 | . 125 810 476 Seismic 144 | 12 132 . . Robot Analysis Total . | . . . . Derelict Logs Recovered 4 | . . 1 3 Drone Launches . | . . . . Drone Recoveries . | . . . . Exploration | -11 -10 -10 -7 ------------- Run | Yrd Mat Sub Scr Turns Passed 4533 | 95 279 810 3349 Spaces Moved 2950 | 64 168 579 2139 Core 28 | 4 . . 24 Treads . | . . . . Legs 2922 | 60 168 579 2115 Wheels . | . . . . Hover . | . . . . Flight . | . . . . Fastest Speed 50 | 50 120 120 100 Average Speed 141 | 115 120 120 149 Slowest Speed 300 | 120 120 120 300 Overloaded Moves . | . . . . Propulsion Burnouts . | . . . . Robots Hopped . | . . . . Potential Cave-ins 2 | . . 2 . Cave-ins Triggered . | . . . . Exploration Rate (%) 39 | 4 40 24 90 Regions Visited 3 Branch Regions 2 Pre-discovered Areas 4 | . . . 4 Known Exits Taken . | . . . . Unknown Exits Taken 3 | 1 1 1 . Scrap Searched 10 | . . . 10 Spaces Dug 31 | . . 27 4 Terrain Destroyed 201 | . 33 143 25 Melee . | . . . . Projectile 1 | . . . 1 AOE 200 | . 33 143 24 Terrain Rammed . | . . . . Walls Destroyed . | . . . . Machines Disabled . | . . . . Actions | -11 -10 -10 -7 --------- Run | Yrd Mat Sub Scr Total 3222 | 76 209 667 2270 Wait 82 | . 17 60 5 Move 2947 | 63 167 578 2139 Hop . | . . . . Pick Up 39 | 2 4 8 25 Fast Attach 22 | 7 . . 15 Attach 7 | . 1 2 4 Detach 1 | . . . 1 Swap 20 | . 2 1 17 Drop 45 | 1 . 3 41 Fire 57 | 3 18 13 23 Melee . | . . . . Ram . | . . . . Kick . | . . . . Crush . | . . . . Escape Stasis . | . . . . Rewire 2 | . . 2 . Trap . | . . . . Miscellaneous . | . . . . Route ------- -11/Scrapyard -10/Materials (discovered 2 exits: [*Min] / [*Sub]) -10/Subcaves (discovered 2 exits: [*Mat] / *Scr) -7/Scraptown (discovered 2 exits: *Fac x2) History --------- Turn | Location | Event 6 | -11/Scrapyard | Discovered new exit (range 16) 96 | -11/Scrapyard | Entered Materials 257 | -10/Materials | Discovered new exit (range 9) 323 | -10/Materials | Build established: Mutant 363 | -10/Materials | Discovered new exit (range 9) 375 | -10/Materials | Entered Subcaves 376 | -10/Subcaves | Approached by a straggling Scientist 377 | -10/Subcaves | Learned Materials garrison access intel 424 | -10/Subcaves | Shifting Twisted Machinery released Sub. Laser 427 | -10/Subcaves | Shifting Twisted Machinery released Riot Gun 491 | -10/Subcaves | Discovered new exit (range 13) 1012 | -10/Subcaves | Scientist uncovered a shortcut to Scraptown 1034 | -10/Subcaves | Shifting Twisted Machinery released Sub. Monowheel 1185 | -10/Subcaves | Entered Scraptown 1903 | -7/Scraptown | Received an X-ray algorithm 1903 | -7/Scraptown | Visited UFD Registry 1929 | -7/Scraptown | Visited Junk Repository 1994 | -7/Scraptown | Visited Fellowship of the Rings 2017 | -7/Scraptown | Visited CR-KLE's Repair Center 2079 | -7/Scraptown | Visited CPS Storage 2133 | -7/Scraptown | Visited Comm Corps 2222 | -7/Scraptown | Visited Bundlers 2380 | -7/Scraptown | Scanned Subdweller tech in exchange for log data 2383 | -7/Scraptown | Learned location of Zion (-7) 2385 | -7/Scraptown | Learned location of Extension (-4) 2387 | -7/Scraptown | Learned location of Quarantine (-2) 2708 | -7/Scraptown | Visited TADAMA 3375 | -7/Scraptown | Discovered new exit (range 7) 3577 | -7/Scraptown | Registered with UFD as "Thermoranger" 3626 | -7/Scraptown | Visited Scrapoid Pod Storage 3682 | -7/Scraptown | Visited Derelict Rescue Squad 3696 | -7/Scraptown | Found DRS Beacon 3733 | -7/Scraptown | Visited Junk Repository 3832 | -7/Scraptown | Visited Junk Cannon Lab 3845 | -7/Scraptown | Found Prototype Special Weapon 3845 | -7/Scraptown | Identified Junk Cannon 4037 | -7/Scraptown | Met Optimus 4037 | -7/Scraptown | Accepted into 0bPrime 4115 | -7/Scraptown | Visited DA-N13 Charitable Foundation 4121 | -7/Scraptown | Found DCF Scrap (30 items) 4166 | -7/Scraptown | Visited Curators Association 4218 | -7/Scraptown | Civil war broke out across Scraptown 4262 | -7/Scraptown | Visited Science Guys 4292 | -7/Scraptown | Identified exit to Factory 4331 | -7/Scraptown | Core integrity fell below 50% 4342 | -7/Scraptown | Found PL-3XN's Ring of Power 4374 | -7/Scraptown | Lost 6 parts (1p3n1u1w) 4430 | -7/Scraptown | Optimus destroyed in the chaos of civil war 4463 | -7/Scraptown | Found PL-3XN's Ring of Power 4494 | -7/Scraptown | Core integrity fell below 20% 4534 | -7/Scraptown | Destroyed by 06-F4Y(j) with Overtuned Pulse Rifle Last Messages --------------- Dropped Hvy. Hammer. Acquired PL-3XN's Ring of Power. Dropped Aluminum Leg. Acquired Ovr. Titanium Leg. Acquired 13 matter. The unstable cave ceiling collapses. X6-MRS(j) destroyed. Operating Theater damaged. 6O-JQB(j): "Can't we all just get along?" 6O-JQB(j) destroyed. Mak. Salvage Targeting Computer melted. IY-XNT(j) destroyed. System corrupted: Energy discharge (-35). The unstable cave ceiling collapses. 4O-4WV(j) cannibalizes Ovr. Pulse Rifle to repair Ovr. Pulse Rifle. Destroyed Scrap Suit. 4O-4WV(j): "I'm having second thoughts about this." 4O-4WV(j) destroyed. Acquired 90 matter. Acquired 27 matter. Map ----- +----------------------------------------------------+ | #??# # # #???????#" "#???# #? | | #??# #???????#" "#???# #? | | #??# #???????###### ###???##### ####? | | ### ########### ####???????##### ########### ##### | | #???????#"""" """"""""""" """"" | | #???????#" | | #???????#" | | #???????#" | | #???????# | | ########## #???##### !*& | | #?# #???#"""" *!% """"""""""""""" | | #?# #???#"""" ![%!"""""""""""""""" | | #?# #???#"""" ==*""###### ###### | | " """"#?# #???#"""" !%""# # | | " """""#?# #???#""" !% ""# X" | | " """""#?# ###?#"""" !! "# "" "" # | | " """""#?#* = = ""#"#"""" /%""# "" "" X" | | """""""??#%[ != """"#""""[!=*!% "# " " # | | """""""??#= j!%=! ""###### %%! %"" "" | | """""""??# !!!=/% ###????? !!== " "" | | ######???# & %=!%!#########" = = "# " " # | | ?????????# j! !!%!%%*%!! !%[ "# "" "" "" | | ?????????# %!%[=%!*[/%%% "# "" "" # | | ?????????# %!*[[!!! !% " X" | | ?????????# [%!!!!==%![= % # | | ########## = TT! !% @ !=%!=[ # ###### | | !! TT %![%*% """"""""" | | !%* !%%[!=! =%% """""""" | | == % !%= !!*= ! % | | =! [![= % | | = % =%!% ! | | !!! #""""#" % * [ | | * !%= #????#" !%! | | %!!![! #????#"""" [% "" " " | | ############ ##=%=%####????######!% ;;""## # | | #???# ;!! ##????????# =!= # | | #???# #[**##????????#""" "### =%= | | "#???# #%!!##????????#""& " # | | #???# #=! ##????????#""" ""## " | | "#???# """" #%= ##????????#"""" ""## " | | "#???# """"" # ##????????#######"##??# "" | | "#???# """"" # ##????????????????????# " | | "#???# # ##????????????????????# =%! " | | #???# # ##????????????????????## " | | "#???########### ##?????????????????????"""""""? | | "#?############# ##?????????????????????######?? | | #?############# ##????????????????????????????? | | "#?##""""""""""" ##????????????????????????????? | | "####""""" """"" ##????????????????????????????? | | #####"""" " "" ##????????????????????????????? | +----------------------------------------------------+ Best States ------------- Heat Dissipation 25 Energy Generation 18 Energy Capacity 310 Matter Stores 300 Matter Capacity 300 Sight Range 16 Terrain Scan Density 10 Evasion (%) 55 Core Analysis 6 Item Schematics ----------------- None Robot Schematics ------------------ None Fabricated ------------ Nothing Repaired ---------- Nothing Alien Tech Used ----------------- None Achievements -------------- Oops Challenges ------------ None Game ------ Seed IonicOvertunedCharger Manual? 0 Play Time 00:57:44 Cumulative 7.8 hours Start 2025.06.04 @ 15:25:07 End 2025.06.05 @ 16:28:30 Sessions 11 Manual Loads 0 Difficulty Rogue Special Mode None Game No. 13 Rogue 13 Adventurer 0 Explorer 0 Win Type - Total 0 Types 0/0/0/0/0/0/0/0/0/0 Lore% 19 Gallery% 10 Achievement% 12 Wizard Run 0 Options --------- Layout 0 ASCII 0 Keyboard 0 Movement Mouse Keybinds 0 Fullscreen 1 Font 18/SmallcapsGlow Map View 76x50 Zoom Use 0% Tactical HUD 0 Map Filters NONE Filters NONE Steam 1 RUN: 3162dcd0-11e8-4cf4-b6bb-f5b20aea673a